Cogmind - Beta 16 @@@ ROGUE MODE // 2025.10.24 @ 08:51:13 Player: jumpy Result: Destroyed by G-47 Trooper with Particle Gun Performance ------------- Evolutions (2) 1000 Regions Visited (5) 1000 Robots Destroyed (77) 385 Value Destroyed (2745) 2745 Prototype IDs (3) 60 Alien Tech Used (0) 0 Bonus (959) 959 TOTAL SCORE: 6149 Bonus ------- High Alert Combat Kills 140 Follower Combat Kills 119 Entered Garrisons 200 Used RIF Installer 500 Cogmind --------- Core Integrity 0/550 Matter 271/300 Energy 190/240 System Corruption 8% Temperature Cool (73) Movement Walking (190) Ox1 Location -8/Materials Parts ------- > --- POWER (1) -------- Nuclear Core > --- PROPULSION (3) --- Aluminum Leg Aluminum Leg Aluminum Leg > --- UTILITY (4) ------ Advanced Heat Sink Advanced Heat Sink Large Storage Unit Improved Sensor Array > --- WEAPON (3) ------- Gatling Laser Gatling Laser Gatling Laser > --- INVENTORY (15) --- Light Nuclear Core Aluminum Leg Aluminum Leg Improved Terrain Scanner Advanced Targeting Computer Hardened Medium Armor Plating Authchip [R/Combat] Authchip [R/Combat] Relay Coupler [NC] (37) Relay Coupler [NC] (32) Gatling Laser Rocket Launcher Datajack Peak State ------------ > --- POWER ------------ Nuclear Core > --- PROPULSION ------- Aluminum Leg Aluminum Leg Carbon-fiber Leg > --- UTILITY ---------- Advanced Heat Sink Advanced Heat Sink Large Storage Unit Improved Sensor Array > --- WEAPON ----------- Gatling Laser Gatling Laser Gatling Laser > --- INVENTORY -------- Aluminum Leg Aluminum Leg Advanced Heat Sink Improved Terrain Scanner Hardened Medium Armor Plating Authchip [R/Combat] Authchip [R/Combat] Relay Coupler [NC] Relay Coupler [NC] Gatling Laser Rocket Launcher Datajack [Rating: 37] Favorites ----------- Power Nuclear Core Engine Heavy Ion Engine Power Core Nuclear Core Propulsion Aluminum Leg Treads Light Treads Leg Aluminum Leg Wheel Wheel Hover Unit Improved Hover Unit Utility Advanced Heat Sink Device Advanced Heat Sink Storage Medium Storage Unit Protection Light Armor Plating Weapon Heavy Assault Rifle Energy Gun Particle Gun Ballistic Gun Heavy Assault Rifle Ballistic Cannon Advanced Assault Cannon Special Weapon Mining Laser Special Melee Weapon Datajack Build | -11 -10 -9 -8 -8 -8 ------- Run | Yrd Mat Mat Mat Gar Mat Slots Evolved 4 | . . 2 2 . . Power . | . . . . . . Propulsion 1 | . . . 1 . . Utility 2 | . . 1 1 . . Weapon 1 | . . 1 . . . Parts Attached 64 | 7 7 7 . 30 13 Power 10 | 1 2 1 . 5 1 Engine 5 | 1 1 1 . 2 . Core 5 | . 1 . . 3 1 Reactor . | . . . . . . Propulsion 21 | 2 3 1 . 11 4 Treads 1 | . . 1 . . . Leg 12 | 2 3 . . 4 3 Wheel 1 | . . . . 1 . Hover 7 | . . . . 6 1 Flight . | . . . . . . Utility 12 | 2 . 2 . 4 4 Device 7 | 1 . . . 3 3 Storage 3 | 1 . 1 . . 1 Processor . | . . . . . . Hackware . | . . . . . . Protection 2 | . . 1 . 1 . Artifact . | . . . . . . Weapon 21 | 2 2 3 . 10 4 Energy Gun 10 | 1 . . . 6 3 Energy Cannon . | . . . . . . Ballistic Gun 7 | 1 2 3 . 1 . Ballistic Cannon 2 | . . . . 2 . Launcher . | . . . . . . Special Weapon 1 | . . . . 1 . Impact Weapon . | . . . . . . Slashing Weapon . | . . . . . . Piercing Weapon . | . . . . . . Special Melee Weapon 1 | . . . . . 1 Unidentified Prototypes 1 | . . . . . 1 Parts Lost 26 | . . 5 . 21 . Power 5 | . . . . 5 . Propulsion 10 | . . 2 . 8 . Utility 3 | . . 1 . 2 . Weapon 8 | . . 2 . 6 . Highest Loss Streak 7 | . . 2 . 7 . To Critical Strikes . | . . . . . . Average Backups 8 | 4 7 7 9 8 11 Power . | . 1 1 1 . . Propulsion 1 | 1 1 1 4 . . Utility 4 | . 2 2 2 5 7 Weapon 2 | 1 3 2 2 2 2 Tool/Special . | . . . . . . Unused Backups 14 | . 3 1 . 1 9 Power 2 | . 1 . . . 1 Propulsion 2 | . 1 . . . 1 Utility 6 | . . . . 1 5 Weapon 4 | . 1 1 . . 2 Tool/Special . | . . . . . . Average Slot Usage (%) 81 | . 100 74 63 66 97 Engine 5 | . 11 11 9 3 . Core 4 | . 2 . . 3 9 Treads 1 | . . 5 9 . . Leg 16 | . 28 8 . 9 27 Hover 2 | . . . . 5 . Device 12 | . 14 4 . 8 24 Storage 10 | . 14 11 9 9 9 Protection 2 | . . 5 9 3 . Energy Gun 12 | . 1 . . 14 27 Ballistic Gun 10 | . 26 29 27 2 . Peak Build Rating 37 | 7 12 14 12 27 37 Average Rating 18 | 5 10 11 12 17 32 On Entrance 10 | . 7 12 12 12 22 Avg Prop Armor Cover (%) . | . . . . . . Naked Turns . | . . . . . . Heaviest Build 42 | 15 20 29 29 34 42 Greatest Support 35 | 20 20 20 20 30 35 Greatest Overweight (x) 8 | . . 6 1 8 1 Average Overweight (x) . | . . 1 1 . . Largest Inventory Capacity 15 | 8 8 10 10 10 15 Average Capacity 10 | 7 8 8 10 10 13 Most Carried 15 | 7 8 9 9 10 15 Average Carried 8 | 4 7 7 9 8 11 Final Capacity 15 | 8 8 10 10 10 15 Final Carried 13 | 7 8 9 9 10 13 Class Distribution -------------------- 35% | Mutant 17% | Scavenger-Tank 15% | Skirmisher 15% | Scavenger-Gunner 8% | Scavenger-Mutant 4% | Scavenger-Skirmisher 3% | Gunner Dominant Class ---------------- Mutant | -10/Materials Scavenger-Tank | -9/Materials Scavenger-Tank | -8/Materials Mutant | -8/Garrison Skirmisher | -8/Materials Resources | -11 -10 -9 -8 -8 -8 ----------- Run | Yrd Mat Mat Mat Gar Mat Matter Collected 1686 | 297 290 102 . 829 168 Remotely . | . . . . . . Salvage Created 2728 | 157 681 298 . 839 753 Parts 167 | 12 31 24 . 53 47 Haulers Intercepted 2 | . 1 1 . . . Recyclers Shooed 1 | . . . . . 1 Parts Field Recycled . | . . . . . . Retrieved Matter . | . . . . . . Parts Self-Destructed . | . . . . . . Prevented . | . . . . . . Parts Restored . | . . . . . . Kills | -11 -10 -9 -8 -8 -8 ------- Run | Yrd Mat Mat Mat Gar Mat Combat Hostiles Destroyed 63 | . 11 10 . 22 20 Guns 56 | . 11 9 . 17 19 Cannons 5 | . . . . 5 . AOE 1 | . . 1 . . . Classes Destroyed 12 | 2 4 2 . 2 2 Worker 2 | . 1 . . . 1 Builder 1 | . . . . . 1 Tunneler 5 | 4 1 . . . . Hauler 2 | . 1 1 . . . Recycler 3 | 1 1 1 . . . Watcher 1 | . 1 . . . . Swarmer 17 | . . 8 . 4 5 Grunt 30 | . 11 1 . 9 9 Sentry 11 | . . 1 . 5 5 Specialist 1 | . . . . 1 . Hunter 1 | . . . . . 1 Programmer 3 | . . . . 3 . Best Kill Streak 9 | 3 7 9 . 4 4 Combat Bots Only 8 | . 4 8 . 4 4 Max Kills in Single Turn 2 | 1 2 2 . 2 2 Gunslinging 1 | . . . . 1 1 Exploded 1 | . . 1 . . . Melee . | . . . . . . Uniques/NPCs Destroyed . | . . . . . . Combat | -11 -10 -9 -8 -8 -8 -------- Run | Yrd Mat Mat Mat Gar Mat Hostile Shots Fired 358 | . 41 103 . 156 58 Missed 82 | . 9 26 . 31 16 Hits 276 | . 32 77 . 125 42 Projectile 276 | . 32 77 . 125 42 AOE 11 | . . . . 11 . Critical Strikes 9 | . 1 2 . 4 2 Damage Taken 3836 | . 410 773 . 2149 504 Core 833 | . 100 180 . 442 111 Absorbed by Shields . | . . . . . . Core Remaining (%) 71 | 100 60 55 . . . Volleys Fired 202 | 9 40 33 . 83 37 Largest 3 | 2 2 3 . 3 3 Hottest 240 | 70 46 69 . 210 240 Shots Fired 452 | 18 80 71 . 175 108 Gun 415 | 18 80 71 . 138 108 Cannon 29 | . . . . 29 . Launcher . | . . . . . . Special 8 | . . . . 8 . Kinetic 246 | 9 80 71 . 86 . Thermal 195 | 9 . . . 78 108 Explosive . | . . . . . . Electromagnetic 11 | . . . . 11 . Robot Hit Streak 11 | 3 8 8 . 11 10 Robot Miss Streak 7 | 2 3 3 . 3 7 Penetration Max . | . . . . . . Secondary Targets 10 | . 2 3 . 3 2 Max Gunslinging Chain 1 | . 1 1 . 1 1 Shots Hit Robots 267 | 10 51 38 . 95 73 Core Hits 135 | 6 24 13 . 43 49 Critical Kills . | . . . . . . Critical Parts Destroyed 1 | . . 1 . . . Critical Strikes 5 | 2 . 1 . 2 . Burn 4 | 2 . . . 2 . Destroy 1 | . . 1 . . . Melee Attacks . | . . . . . . Impact . | . . . . . . Slashing . | . . . . . . Piercing . | . . . . . . Sneak Attacks . | . . . . . . Combat Hostiles . | . . . . . . Follow-up Attacks . | . . . . . . Damage Inflicted 5216 | 138 855 774 . 1908 1541 Guns 4552 | 138 855 579 . 1439 1541 Cannons 457 | . . . . 457 . Explosions 195 | . . 195 . . . Melee . | . . . . . . Ramming 12 | . . . . 12 . Kinetic 2677 | 63 855 579 . 1180 . Thermal 2452 | 75 . 195 . 641 1541 Explosive . | . . . . . . Electromagnetic 75 | . . . . 75 . Impact . | . . . . . . Slashing . | . . . . . . Piercing . | . . . . . . Highest Corruption 8 | . . . . 8 8 Average Corruption 7 | . . . . 6 8 Corruption Purged . | . . . . . . Corruption Blocked . | . . . . . . Effects 56 | . . . . 29 27 Message Errors 18 | . . . . 7 11 Matter Fused 10 | . . . . 8 2 Heat Flow Errors 5 | . . . . 3 2 Energy Discharges 4 | . . . . 2 2 Parts Rejected 1 | . . . . 1 . Data Loss (minor) 8 | . . . . 5 3 Data Loss (major) 2 | . . . . . 2 Misfires 2 | . . . . 1 1 Weapon Failures 6 | . . . . 2 4 Overload Shots . | . . . . . . Overflow Damage 82 | . . 65 . 17 . Projectiles 17 | . . . . 17 . Explosions 65 | . . 65 . . . Melee . | . . . . . . Knockbacks 1 | . . . . 1 . Impact . | . . . . . . Kinetic 1 | . . . . 1 . Secondary . | . . . . . . Self-Inflicted Damage 93 | . . 87 . 6 . Shots 1 | . . 1 . . . Rammed 2 | . . . . 2 . Targets Rammed 2 | . . . . 2 . Kicked . | . . . . . . Crushed . | . . . . . . Highest Temperature 416 | 36 22 48 . 234 416 Average Temperature 50 | 14 3 11 . 56 71 Received Heat Transfer 984 | . 243 57 . 495 189 Effects 1 | . . . . . 1 Damage (minor) 1 | . . . . . 1 Siege Activations . | . . . . . . Martial Activations . | . . . . . . Shielding Activations . | . . . . . . Robots Disrupted . | . . . . . . Combat Hostiles . | . . . . . . Robots Corrupted . | . . . . . . Combat Hostiles . | . . . . . . Parts Fried . | . . . . . . Impact Corruptions . | . . . . . . Robots Melted 1 | . . . . . 1 Combat Hostiles 1 | . . . . . 1 Parts Melted 8 | . . 1 . 2 5 Heat Transferred 5473 | 370 . 100 . 1472 3531 Parts Sabotaged . | . . . . . . Parts Stolen . | . . . . . . Parts Stripped . | . . . . . . Power Chain Reactions . | . . . . . . Alert | -11 -10 -9 -8 -8 -8 ------- Run | Yrd Mat Mat Mat Gar Mat Maximum Alert Level 3 | . . . . 3 2 Low Security (%) 49 | 100 100 100 100 33 . Level 1 36 | . . . . 39 87 Level 2 9 | . . . . 18 12 Level 3 3 | . . . . 9 . Level 4 . | . . . . . . Level 5 . | . . . . . . High Security . | . . . . . . Max Security . | . . . . . . Peak Influence 713 | 5 138 199 35 713 490 Initial 347 | . . 41 31 22 347 Average 226 | 1 61 104 31 288 362 Influence Increases 2152 | 25 331 322 4 953 517 Destroy 0b10 Robot/C 1440 | . 220 200 . 620 400 Destroy 0b10 Robot/NC 70 | 25 25 10 . . 10 Destroy Leader 206 | . 54 32 . 20 100 Allied During Kill 16 | . . . . 16 . Successful Hack 35 | . 17 . 4 7 7 Disable Machine 30 | . . 30 . . . Anti-Garrison Action 200 | . . . . 200 . Destroy Structure 65 | . . 35 . 30 . Lose Combat Pursuer 90 | . 15 15 . 60 . Influence Decreases 1662 | 25 232 345 45 275 740 Entered New Map 482 | . . 58 45 13 366 Time Decay 868 | 25 232 237 . . 374 Lost Part 252 | . . 50 . 202 . Lost Ally 60 | . . . . 60 . Squads Dispatched 8 | . 3 1 . . 4 Investigation 3 | . 1 1 . . 1 Extermination . | . . . . . . Reinforcement 5 | . 2 . . . 3 Assault . | . . . . . . Garrison . | . . . . . . Intercept . | . . . . . . Searches Triggered . | . . . . . . Construction Impeded . | . . . . . . Haulers Reinforced . | . . . . . . Active Scanning Responses . | . . . . . . Cargo Convoy Interrupts . | . . . . . . Stealth | -11 -10 -9 -8 -8 -8 --------- Run | Yrd Mat Mat Mat Gar Mat Distress Signals 4 | . 1 1 . . 2 Communications Jammed . | . . . . . . Distress Signals . | . . . . . . Times Spotted 95 | . 16 14 . 30 35 Peak Tracking Total 6 | . 3 4 . 5 6 Tactical Retreats 4 | . 1 1 . 2 . Traps | -11 -10 -9 -8 -8 -8 ------- Run | Yrd Mat Mat Mat Gar Mat Traps Triggered 8 | . 1 . . 7 . Indirectly . | . . . . . . Trap Hack Attempts . | . . . . . . Triggered . | . . . . . . Disarmed . | . . . . . . Reprogrammed . | . . . . . . Reused . | . . . . . . Traps Extracted . | . . . . . . Installed . | . . . . . . Triggered . | . . . . . . Machines | -11 -10 -9 -8 -8 -8 ---------- Run | Yrd Mat Mat Mat Gar Mat Machines Disabled 5 | . . 2 . 3 . Max in Single Turn 1 | . . 1 . 1 . Garrison Access 1 | . . . . . 1 Garrison Relay 2 | . . . . 2 . Machines Repaired . | . . . . . . Machines Dismantled . | . . . . . . Machines Sabotaged . | . . . . . . Overloaded Fab Kills . | . . . . . . Hacking | -11 -10 -9 -8 -8 -8 --------- Run | Yrd Mat Mat Mat Gar Mat Machines Accessed 9 | . 1 1 1 3 3 Terminals 6 | . 1 1 . 3 1 Fabricators . | . . . . . . Repair Stations . | . . . . . . Recycling Units . | . . . . . . Scanalyzers 1 | . . . . . 1 Garrison Access 2 | . . . 1 . 1 Total Hacks 17 | . 4 2 2 4 5 Successful 12 | . 4 . 1 2 5 Failed 5 | . . 2 1 2 . Catastrophic . | . . . . . . Database Lockouts . | . . . . . . Manual 2 | . 2 . . . . Terminals 11 | . 4 2 . 4 1 Fabricators . | . . . . . . Repair Stations . | . . . . . . Recycling Units . | . . . . . . Scanalyzers 3 | . . . . . 3 Garrison Access 3 | . . . 2 . 1 Terminal Hacks 7 | . 4 . . 2 1 Part Schematic 1 | . 1 . . . . Robot Analysis 1 | . 1 . . . . Prototype ID Bank 1 | . 1 . . . . Open Door 1 | . . . . 1 . Emergency Access Points 1 | . . . . 1 . Locate Traps 1 | . 1 . . . . Registered Components 1 | . . . . . 1 Fabricator Hacks . | . . . . . . Repair Station Hacks . | . . . . . . Recycling Unit Hacks . | . . . . . . Scanalyzer 3 | . . . . . 3 Insert Component 1 | . . . . . 1 Analyze 1 | . . . . . 1 Retrieve Study 1 | . . . . . 1 Garrison Access Hacks 2 | . . . 1 . 1 Unlock Access 1 | . . . 1 . . Seal Access 1 | . . . . . 1 Unauthorized Hacks . | . . . . . . Terminals . | . . . . . . Fabricators . | . . . . . . Repair Stations . | . . . . . . Recycling Units . | . . . . . . Scanalyzers . | . . . . . . Garrison Access . | . . . . . . Data Cores Recovered . | . . . . . . Used . | . . . . . . Hacking Detections 6 | . . 1 1 3 1 Full Trace Events 2 | . . 1 . . 1 Feedback Events . | . . . . . . Feedback Blocked . | . . . . . . Robot Schematics Acquired . | . . . . . . Robots Built . | . . . . . . Authchips . | . . . . . . Time . | . . . . . . Total Robot Build Rating . | . . . . . . Part Schematics Acquired 2 | . 1 . . . 1 Parts Built . | . . . . . . Authchips . | . . . . . . Time . | . . . . . . Total Part Build Rating . | . . . . . . Part Studies Acquired . | . . . . . . Parts Repaired . | . . . . . . Time . | . . . . . . Parts Recycled . | . . . . . . Recycled Matter . | . . . . . . Retrieved Matter . | . . . . . . Retrieved Components . | . . . . . . Parts Scanalyzed 1 | . . . . . 1 Part Schematics Acquired 1 | . . . . . 1 Parts Damaged . | . . . . . . Bothacking | -11 -10 -9 -8 -8 -8 ------------ Run | Yrd Mat Mat Mat Gar Mat Used RIF Installer 1 | . . . . 1 . Robots Hacked . | . . . . . . Non-combat . | . . . . . . Combat . | . . . . . . Robot Hacks Applied . | . . . . . . Relay Couplers Released 8 | . . . . 8 . Machine Destruction 8 | . . . . 8 . Fabnet Peak Effective % . | . . . . . . Robots Rewired 2 | . . . . 2 . Allies Hacked . | . . . . . . Hacks Repelled . | . . . . . . Allies | -11 -10 -9 -8 -8 -8 -------- Run | Yrd Mat Mat Mat Gar Mat Total Allies 3 | . . . . 3 . Largest Group 2 | . . . . 2 . Highest-Rated Group 52 | . . . . 52 . Highest-Rated Ally 31 | . . . . 31 . Total Orders . | . . . . . . Ally Attacks 20 | . . . . 20 . Total Damage 336 | . . . . 336 . Kills 9 | . . . . 9 . Allies Corrupted . | . . . . . . Allies Melted . | . . . . . . Intel | -11 -10 -9 -8 -8 -8 ------- Run | Yrd Mat Mat Mat Gar Mat Active Infowar (turns) 1773 | 97 568 224 . 20 864 Sensors 700 | . . . . . 700 Seismic 1075 | 97 568 224 . 20 166 Robot Analysis Total 1 | . 1 . . . . Derelict Logs Recovered . | . . . . . . Drone Launches . | . . . . . . Drone Recoveries . | . . . . . . Exploration | -11 -10 -9 -8 -8 -8 ------------- Run | Yrd Mat Mat Mat Gar Mat Turns Passed 3532 | 187 568 527 17 1369 864 Spaces Moved 1874 | 122 336 188 8 818 402 Core 21 | 4 . 6 . 11 . Treads 112 | . . 99 8 5 . Legs 1262 | 118 336 83 . 323 402 Wheels 198 | . . . . 198 . Hover 281 | . . . . 281 . Flight . | . . . . . . Fastest Speed 50 | 50 120 160 240 52 120 Average Speed 137 | 117 120 220 240 111 168 Slowest Speed 450 | 120 120 350 240 450 190 Overloaded Moves . | . . . . . . Propulsion Burnouts . | . . . . . . Robots Hopped . | . . . . . . Potential Cave-ins . | . . . . . . Cave-ins Triggered . | . . . . . . Exploration Rate (%) 35 | 6 57 22 2 82 41 Regions Visited 5 Branch Regions . Pre-discovered Areas . | . . . . . . Known Exits Taken 1 | . . . 1 . . Unknown Exits Taken 3 | 1 1 1 . . . Scrap Searched . | . . . . . . Spaces Dug . | . . . . . . Terrain Destroyed 33 | . . 33 . . . Melee . | . . . . . . Projectile . | . . . . . . AOE 33 | . . 33 . . . Terrain Rammed . | . . . . . . Walls Destroyed . | . . . . . . Machines Disabled . | . . . . . . Actions | -11 -10 -9 -8 -8 -8 --------- Run | Yrd Mat Mat Mat Gar Mat Total 2399 | 144 427 236 7 1094 491 Wait 135 | . 32 3 . 82 18 Move 1868 | 121 335 187 7 816 402 Hop . | . . . . . . Pick Up 30 | 7 4 4 . 9 6 Fast Attach 35 | 7 . 4 . 22 2 Attach 12 | . . 2 . 9 1 Detach 2 | . . . . 2 . Swap 28 | . 7 1 . 7 13 Drop 29 | . 9 2 . 6 12 Fire 202 | 9 40 33 . 83 37 Melee . | . . . . . . Ram 2 | . . . . 2 . Kick . | . . . . . . Crush . | . . . . . . Escape Stasis 34 | . . . . 34 . Rewire 22 | . . . . 22 . Trap . | . . . . . . Miscellaneous . | . . . . . . Route ------- -11/Scrapyard -10/Materials (discovered 2 exits: *Mat / [*Min]) -9/Materials -8/Materials -8/Garrison (discovered 3 exits: *Mat x3) -8/Materials History --------- Turn | Location | Event 48 | -11/Scrapyard | Discovered new exit (range 16) 188 | -11/Scrapyard | Entered Materials 303 | -10/Materials | Build established: Mutant 416 | -10/Materials | Discovered new exit (range 15) 691 | -10/Materials | Discovered new exit (range 15) 756 | -10/Materials | Entered another Materials area 756 | -9/Materials | Evolved 2 slots: Utility x1, Weapon x1 929 | -9/Materials | Destroyed 8 combat bots 1152 | -9/Materials | Discovered new exit (range 3) 1283 | -9/Materials | Entered another Materials area 1283 | -8/Materials | Evolved 2 slots: Propulsion x1, Utility x1 1298 | -8/Materials | Identified exit to Garrison 1300 | -8/Materials | Entered Garrison 1329 | -8/Garrison | Build established: Scavenger-Tank 1394 | -8/Garrison | Lost 5 parts (1p1n1u2w) 1450 | -8/Garrison | Triggered checkpoint 1510 | -8/Garrison | Lost 7 parts (1p4n2w) 1533 | -8/Garrison | Garrison Relay disabled 1727 | -8/Garrison | Core integrity fell below 50% 1772 | -8/Garrison | Lost 3 parts (1p2n) 1988 | -8/Garrison | Triggered checkpoint 2056 | -8/Garrison | Discovered new exit (range 10) 2098 | -8/Garrison | Triggered checkpoint 2112 | -8/Garrison | Core integrity fell below 20% 2219 | -8/Garrison | Garrison Relay disabled 2292 | -8/Garrison | Triggered checkpoint 2312 | -8/Garrison | Triggered checkpoint 2332 | -8/Garrison | Discovered new exit (range 9) 2356 | -8/Garrison | Rescued a captive Derelict 2498 | -8/Garrison | Triggered checkpoint 2580 | -8/Garrison | Build established: Scavenger-Gunner 2623 | -8/Garrison | Installed Relay Interface Framework 2632 | -8/Garrison | Discovered new exit (range 13) 2669 | -8/Garrison | Entered Materials 3274 | -8/Materials | Build established: Skirmisher 3533 | -8/Materials | Destroyed by G-47 Trooper with Particle Gun Last Messages --------------- 03470_ K-01 Serf collects debris. 03470_ R-06 Scavenger collects Particle Gun. 03473_ K-01 Serf collects debris. 03482_ S-10 Pest destroyed. 03484_ K-01 Serf collects debris. 03486_ Destroyed Lgt. Ion Engine. 03490_ S-10 Pest destroyed. 03492_ ALERT: Hostiles spotted, dispatching reinforcements to Terminal M004. 03495_ Dropped Adv. Heat Sink. 03496_ S-10 Pest destroyed. 03500_ Y-45 Defender destroyed. 03504_ Acquired 11 matter. 03504_ K-01 Serf collects debris. 03507_ R-06 Scavenger collects Imp. Ion Engine. 03508_ K-01 Serf collects debris. 03511_ R-06 Scavenger collects Lgt. Armor Plating. 03511_ K-01 Serf collects debris. 03530_ U-05 Engineer destroyed. 03530_ G-47 Trooper destroyed. Map ----- +----------------------------------------------------+ | ## ##???### #???????????????????????? | | ?# #?? # """ #????%??????????????????? | | ?# # """ # """ #???????????????????????? | | ## + "R" #! """ #???????????????????????? | | # " " # #???????????????????????? | | #?? # !!!#???????????????????????? | | #???? !# """ !!!#???????????????????????? | | ######??????# """ !!!#???????????????????????? | | #?????????# """ *%=#???????????????????????? | | #?????????# % ##+#????????????????????? | | #?????????# !% #????????????????????? | | #?????????# ###"T"## o #????????????????????? | | #?????????# ??#"""## ########?????????????? | | #?????????##+#??###### # #?????????????? | | #????????????????????# %#["""" #?????????????? | | #????????????????????# !%#["""" #?????????????? | | = #????????????????????# *=+ """" #?????????????? | | ###????????????????????# #*! #?????????????? | | ???????????????????????# #] ! ! #?????????????? | | ???????????????????????# ########?????????????? | | ???????????????????????# #????????????????????? | | ???????????????????????# #????????????????????? | | ???????????????????????# #????????????????????? | | ???????????????????????# #????????????????????? | | ???????????????????????# #????????????????????? | | ???????????????????????# @ #????????????????????? | | ???????????????????????# ! #????????????????????? | | ???????????????????????# =%!#????????????????????? | | ??????????????????????? |! ???????????????????? | | ?????????????????????? ??????????????????? | | ????????????????????? ?????????????????? | | ????????????????????######### ????????????????? | | ?????????????????????????????#gg #???????????????? | | ?????????????????????????????? %[#???????????????? | | ?????????????????????????????? * #???????????????? | | ??????????????????????!???????? #???????????????? | | ??????????????????????????????? #???????????????? | | ???????????????????????????????? #???????????????? | | ?????????????????????????????????????????????????? | | ?????????????????????????????????????????????????? | | ?????????????????????????????????????????????????? | | ?????????????????????????????????????????????????? | | ?????????????????????????????????????????????????? | | ??????????!??????????????????????????????????????? | | ?????????????????????????????????????????????????? | | ?????????????????????????????????????????????????? | | ?????????????????????????????????????????????????? | | ?????????????????????????????????????????????????? | | ???????????????????????????=?????????????????????? | | ?????????????????????????????????????????????????? | +----------------------------------------------------+ Best States ------------- Heat Dissipation 69 Energy Generation 15 Energy Capacity 280 Matter Stores 300 Matter Capacity 300 Sight Range 16 Robot Scan Range 15 Terrain Scan Density 10 Armor Coverage 150 Evasion (%) 55 Recoil Reduction 1 Authchip Count 2 Item Schematics ----------------- Lrg. Storage Unit | -10/Materials | Hacked Gatling Laser | -8/Materials | Scanalyzed Robot Schematics ------------------ None Fabricated ------------ Nothing Repaired ---------- Nothing Studied --------- None Alien Tech Used ----------------- None Achievements -------------- None Challenges ------------ None Game ------ Seed FactoryTransmissionMace Manual? 0 Play Time 00:24:35 Cumulative 238.9 hours Start 2025.10.24 @ 08:30:39 End 2025.10.24 @ 08:51:13 Sessions 1 Manual Loads 0 Difficulty Rogue Special Mode None Game No. 550 Rogue 550 Adventurer 0 Explorer 0 Win Type - Total 14 Types 10/0/2/1/1/0/0/0/0/0 Lore% 79 Gallery% 68 Achievement% 45 Wizard Run 0 Options --------- Layout 0 ASCII 0 Keyboard 0 Movement Numpad Keybinds 0 Fullscreen 2 Font 18/Terminus Map View 76x50 Zoom Use 0% Tactical HUD 1 Map Filters NONE Filters SATURATION(100) Steam 1 RUN: 012914ff-dc90-43a0-981a-79717eb490e7